Cogmind - Beta 13 @@@ ROGUE MODE // 2024.04.04 @ 18:34:17 Player: Camoedine Result: Destroyed by as-14475 with Assembled Rifle Performance ------------- Evolutions (1) 500 Regions Visited (3) 600 Robots Destroyed (55) 275 Value Destroyed (1246) 1246 Prototype IDs (4) 80 Alien Tech Used (0) 0 Bonus (142) 142 TOTAL SCORE: 2843 Bonus ------- High Alert Combat Kills 142 Cogmind --------- Core Integrity 0/400 Matter 397/450 Energy 268/280 System Corruption 1% Temperature Cool (10) Movement Treading (145) Location -9/Mines Parts ------- > --- POWER (1) -------- Cooled Ion Engine > --- PROPULSION (2) --- Advanced Treads Advanced Treads > --- UTILITY (4) ------ Large Storage Unit Large Matter Pod Visual Processing Unit Targeting Computer > --- WEAPON (2) ------- Heavy EM Pulse Gun Heavy EM Pulse Gun > --- INVENTORY (15) --- Light Ion Engine Improved Ion Engine Cooled Ion Engine Advanced Treads Advanced Treads Improved Heat Sink Large Storage Unit Improved Terrain Scanner Improved Terrain Scanner Light Armor Plating Heavy EM Pulse Gun Heavy EM Pulse Gun Improved Assault Rifle Improved Assault Rifle Improved Assault Rifle Peak State ------------ > --- POWER ------------ Cooled Ion Engine > --- PROPULSION ------- Advanced Treads Advanced Treads > --- UTILITY ---------- Large Storage Unit Visual Processing Unit Targeting Computer Targeting Computer > --- WEAPON ----------- Beam Rifle Spread Laser > --- INVENTORY -------- Light Ion Engine Improved Ion Engine Cooled Ion Engine Advanced Treads Advanced Treads Improved Heat Sink Large Storage Unit Light Armor Plating Light Assault Rifle Heavy Assault Rifle Improved Assault Rifle Improved Assault Rifle Improved Assault Rifle Improved Assault Rifle [Rating: 21] Favorites ----------- Power Light Ion Engine Engine Light Ion Engine Propulsion Light Treads Treads Light Treads Leg Aluminum Leg Hover Unit Improved Hover Unit Utility Targeting Computer Storage Large Storage Unit Processor Targeting Computer Weapon Grenade Launcher Energy Gun Spread Laser Ballistic Gun Autogun Launcher Grenade Launcher Build | -11 -10 -9 -9 ------- Run | Yrd Mat Mat Min Slots Evolved 2 | . . 2 . Power . | . . . . Propulsion . | . . . . Utility 2 | . . 2 . Weapon . | . . . . Parts Attached 36 | 5 5 26 . Power 5 | 1 . 4 . Engine 5 | 1 . 4 . Core . | . . . . Reactor . | . . . . Propulsion 9 | 2 . 7 . Treads 4 | 2 . 2 . Leg 2 | . . 2 . Wheel . | . . . . Hover 3 | . . 3 . Flight . | . . . . Utility 8 | . 3 5 . Device . | . . . . Storage 3 | . 2 1 . Processor 5 | . 1 4 . Hackware . | . . . . Protection . | . . . . Artifact . | . . . . Weapon 14 | 2 2 10 . Energy Gun 6 | 1 . 5 . Energy Cannon . | . . . . Ballistic Gun 5 | 1 . 4 . Ballistic Cannon . | . . . . Launcher 3 | . 2 1 . Special Weapon . | . . . . Impact Weapon . | . . . . Slashing Weapon . | . . . . Piercing Weapon . | . . . . Special Melee Weapon . | . . . . Unidentified Prototypes 2 | . . 2 . Parts Lost 12 | . . 12 . Power 2 | . . 2 . Propulsion 4 | . . 4 . Utility 1 | . . 1 . Weapon 5 | . . 5 . Highest Loss Streak 4 | . . 4 . To Critical Strikes . | . . . . Average Slot Usage (%) 91 | . 89 92 100 Engine 10 | . 14 9 11 Treads 11 | . 28 6 22 Leg 2 | . . 2 . Hover 7 | . . 9 . Storage 12 | . 14 12 22 Processor 25 | . 4 31 22 Energy Gun 10 | . 4 12 22 Ballistic Gun 4 | . 4 5 . Launcher 6 | . 20 2 . Naked Turns . | . . . . Heaviest Build 37 | 7 29 37 37 Greatest Support 44 | 40 40 44 44 Greatest Overweight (x) 11 | . . 11 . Average Overweight (x) 1 | . . 1 . Largest Inventory Capacity 15 | 5 15 15 15 Average Capacity 13 | 5 11 15 15 Most Carried 15 | 5 12 15 15 Average Carried 12 | 3 7 14 15 Final Capacity 15 | 5 15 15 15 Final Carried 15 | 5 12 15 15 Class Distribution -------------------- 100% | Mutant Dominant Class ---------------- Mutant | -10/Materials Mutant | -9/Materials Mutant | -9/Mines Resources | -11 -10 -9 -9 ----------- Run | Yrd Mat Mat Min Matter Collected 1196 | 237 93 802 64 Remotely . | . . . . Salvage Created 1408 | . 266 1096 46 Parts 107 | . 18 83 6 Haulers Intercepted 1 | . . 1 . Recyclers Shooed 7 | . 1 6 . Parts Field Recycled . | . . . . Retrieved Matter . | . . . . Parts Self-Destructed . | . . . . Prevented . | . . . . Kills | -11 -10 -9 -9 ------- Run | Yrd Mat Mat Min Combat Hostiles Destroyed 36 | . 6 27 3 Guns 25 | . 2 20 3 AOE 11 | . 4 7 . Classes Destroyed 9 | . 6 3 . Worker 3 | . 1 2 . Builder 3 | . 1 2 . Hauler 1 | . . 1 . Recycler 5 | . 1 4 . Operator 1 | . . 1 . Watcher 6 | . 2 4 . Swarmer 13 | . 1 9 3 Grunt 17 | . 5 12 . Sentry 6 | . . 6 . Best Kill Streak 11 | . 5 11 3 Combat Bots Only 9 | . 3 9 3 Max Kills in Single Turn 4 | . 3 4 2 Gunslinging 1 | . 1 1 . Exploded 3 | . 3 3 . Melee . | . . . . Uniques/NPCs Destroyed . | . . . . Combat | -11 -10 -9 -9 -------- Run | Yrd Mat Mat Min Hostile Shots Fired 208 | . 22 169 17 Missed 55 | . 5 43 7 Damage Taken 2048 | . 329 1535 184 Core 516 | . 106 389 21 Absorbed by Shields . | . . . . Core Remaining (%) 78 | 100 57 . . Volleys Fired 106 | . 15 86 5 Largest 2 | . 2 2 2 Hottest 121 | . 60 121 90 Shots Fired 177 | . 30 137 10 Gun 145 | . 16 119 10 Cannon . | . . . . Launcher 32 | . 14 18 . Special . | . . . . Kinetic 70 | . 8 62 . Thermal 51 | . . 51 . Explosive 32 | . 14 18 . Electromagnetic 24 | . 8 6 10 Robot Hit Streak 13 | . 4 13 2 Robot Miss Streak 3 | . 1 3 1 Penetration Max . | . . . . Secondary Targets 5 | . 1 4 . Max Gunslinging Chain 1 | . 1 1 . Shots Hit Robots 118 | . 18 96 4 Core Hits 95 | . 16 75 4 Critical Kills . | . . . . Critical Parts Destroyed . | . . . . Critical Strikes 3 | . . 3 . Burn 3 | . . 3 . Melee Attacks . | . . . . Impact . | . . . . Slashing . | . . . . Piercing . | . . . . Sneak Attacks . | . . . . Combat Hostiles . | . . . . Follow-up Attacks . | . . . . Damage Inflicted 3012 | . 667 2254 91 Guns 1674 | . 158 1425 91 Cannons . | . . . . Explosions 1338 | . 509 829 . Melee . | . . . . Ramming . | . . . . Kinetic 827 | . 75 752 . Thermal 714 | . . 714 . Explosive 1244 | . 509 735 . Electromagnetic 227 | . 83 53 91 Impact . | . . . . Slashing . | . . . . Piercing . | . . . . Highest Corruption 1 | . . 1 1 Average Corruption 1 | . . 1 1 Corruption Purged . | . . . . Corruption Blocked . | . . . . Effects 2 | . . 1 1 Data Loss (major) 1 | . . . 1 Alerts 1 | . . 1 . Overload Shots . | . . . . Overflow Damage 15 | . 6 9 . Projectiles . | . . . . Explosions 15 | . 6 9 . Melee . | . . . . Knockbacks . | . . . . Impact . | . . . . Kinetic . | . . . . Secondary . | . . . . Self-Inflicted Damage 117 | . 29 88 . Shots 3 | . 1 2 . Rammed . | . . . . Targets Rammed . | . . . . Kicked . | . . . . Crushed . | . . . . Highest Temperature 162 | . 78 162 60 Average Temperature 41 | . 35 43 28 Received Heat Transfer 570 | . 126 444 . Siege Activations . | . . . . Robots Corrupted . | . . . . Combat Hostiles . | . . . . Parts Fried . | . . . . Impact Corruptions . | . . . . Robots Melted . | . . . . Combat Hostiles . | . . . . Parts Melted 3 | . . 3 . Heat Transferred 1362 | . . 1362 . Parts Sabotaged . | . . . . Parts Stolen . | . . . . Parts Stripped . | . . . . Power Chain Reactions . | . . . . Alert | -11 -10 -9 -9 ------- Run | Yrd Mat Mat Min Peak Influence 599 | . 186 599 247 Initial 177 | . . 26 177 Average 375 | . 102 471 242 Maximum Alert Level 2 | . . 2 1 Low Security (%) 26 | 100 100 3 4 Level 1 15 | . . 17 95 Level 2 58 | . . 79 . Level 3 . | . . . . Level 4 . | . . . . Level 5 . | . . . . High Security . | . . . . Max Security . | . . . . Squads Dispatched 5 | . 1 4 . Investigation 4 | . 1 3 . Extermination . | . . . . Reinforcement 1 | . . 1 . Assault . | . . . . Garrison . | . . . . Intercept . | . . . . Searches Triggered . | . . . . Construction Impeded . | . . . . Haulers Reinforced . | . . . . Active Scanning Responses . | . . . . Cargo Convoy Interrupts . | . . . . Stealth | -11 -10 -9 -9 --------- Run | Yrd Mat Mat Min Distress Signals 5 | . 2 3 . Communications Jammed . | . . . . Distress Signals . | . . . . Times Spotted 57 | . 7 38 12 Peak Tracking Total 19 | . 3 5 19 Tactical Retreats 1 | . . . 1 Traps | -11 -10 -9 -9 ------- Run | Yrd Mat Mat Min Traps Triggered 5 | . 3 2 . Indirectly . | . . . . Trap Hack Attempts . | . . . . Triggered . | . . . . Disarmed . | . . . . Reprogrammed . | . . . . Reused . | . . . . Traps Extracted . | . . . . Installed . | . . . . Triggered . | . . . . Machines | -11 -10 -9 -9 ---------- Run | Yrd Mat Mat Min Machines Disabled 9 | . 1 8 . Max in Single Turn 2 | . 1 2 . Machines Repaired . | . . . . Machines Dismantled . | . . . . Machines Sabotaged . | . . . . Overloaded Fab Kills . | . . . . Hacking | -11 -10 -9 -9 --------- Run | Yrd Mat Mat Min Machines Accessed 5 | . 1 4 . Terminals 4 | . 1 3 . Fabricators . | . . . . Repair Stations . | . . . . Recycling Units . | . . . . Scanalyzers 1 | . . 1 . Garrison Access . | . . . . Total Hacks 16 | . 2 14 . Successful 9 | . 2 7 . Failed 7 | . . 7 . Catastrophic 2 | . . 2 . Database Lockouts . | . . . . Manual . | . . . . Terminals 12 | . 2 10 . Fabricators . | . . . . Repair Stations . | . . . . Recycling Units . | . . . . Scanalyzers 4 | . . 4 . Garrison Access . | . . . . Terminal Hacks 5 | . 2 3 . Record 2 | . . 2 . Emergency Access Points 1 | . . 1 . Maintenance Status 1 | . 1 . . Zone Layout 1 | . 1 . . Fabricator Hacks . | . . . . Repair Station Hacks . | . . . . Recycling Unit Hacks . | . . . . Scanalyzer 4 | . . 4 . Insert Component 2 | . . 2 . Analyze 2 | . . 2 . Garrison Access Hacks . | . . . . Unauthorized Hacks . | . . . . Terminals . | . . . . Fabricators . | . . . . Repair Stations . | . . . . Recycling Units . | . . . . Scanalyzers . | . . . . Garrison Access . | . . . . Data Cores Recovered . | . . . . Used . | . . . . Hacking Detections 3 | . . 3 . Full Trace Events 2 | . . 2 . Feedback Events . | . . . . Feedback Blocked . | . . . . Robot Schematics Acquired . | . . . . Robots Built . | . . . . Authchips . | . . . . Time . | . . . . Total Robot Build Rating . | . . . . Part Schematics Acquired 2 | . . 2 . Parts Built . | . . . . Authchips . | . . . . Time . | . . . . Total Part Build Rating . | . . . . Parts Repaired . | . . . . Time . | . . . . Parts Recycled . | . . . . Recycled Matter . | . . . . Retrieved Matter . | . . . . Retrieved Components . | . . . . Parts Scanalyzed 2 | . . 2 . Part Schematics Acquired 2 | . . 2 . Parts Damaged . | . . . . Bothacking | -11 -10 -9 -9 ------------ Run | Yrd Mat Mat Min Used RIF Installer . | . . . . Robots Hacked . | . . . . Non-combat . | . . . . Combat . | . . . . Robot Hacks Applied . | . . . . Relay Couplers Released . | . . . . Fabnet Peak Effective % . | . . . . Robots Rewired . | . . . . Allies Hacked . | . . . . Hacks Repelled . | . . . . Allies | -11 -10 -9 -9 -------- Run | Yrd Mat Mat Min Total Allies . | . . . . Largest Group . | . . . . Highest-Rated Group . | . . . . Highest-Rated Ally . | . . . . Total Orders . | . . . . Ally Attacks . | . . . . Total Damage . | . . . . Kills . | . . . . Allies Corrupted . | . . . . Allies Melted . | . . . . Intel | -11 -10 -9 -9 ------- Run | Yrd Mat Mat Min Robot Analysis Total . | . . . . Derelict Logs Recovered . | . . . . Drone Launches . | . . . . Drone Recoveries . | . . . . Exploration | -11 -10 -9 -9 ------------- Run | Yrd Mat Mat Min Turns Passed 2459 | 83 486 1820 70 Spaces Moved 1156 | 48 260 810 38 Core 16 | 7 . 9 . Treads 618 | 41 260 279 38 Legs 79 | . . 79 . Wheels . | . . . . Hover 443 | . . 443 . Flight . | . . . . Fastest Speed 50 | 50 160 116 145 Average Speed 175 | 143 160 184 145 Slowest Speed 600 | 160 160 600 145 Overloaded Moves . | . . . . Propulsion Burnouts . | . . . . Robots Hopped . | . . . . Cave-ins Triggered . | . . . . Exploration Rate (%) 35 | 4 50 65 21 Regions Visited 3 Branch Regions 1 Pre-discovered Areas . | . . . . Known Exits Taken . | . . . . Unknown Exits Taken 3 | 1 1 1 . Scrap Searched 1 | . . . 1 Spaces Dug . | . . . . Terrain Destroyed 196 | . 56 140 . Melee . | . . . . Projectile . | . . . . AOE 196 | . 56 140 . Terrain Rammed . | . . . . Walls Destroyed . | . . . . Machines Disabled . | . . . . Actions | -11 -10 -9 -9 --------- Run | Yrd Mat Mat Min Total 1421 | 62 299 1017 43 Wait 43 | . 10 33 . Move 1153 | 47 259 809 38 Hop . | . . . . Pick Up 57 | 10 9 38 . Fast Attach 6 | . 1 5 . Attach 23 | 5 2 16 . Detach . | . . . . Swap 7 | . 2 5 . Drop 26 | . 1 25 . Fire 106 | . 15 86 5 Melee . | . . . . Ram . | . . . . Kick . | . . . . Crush . | . . . . Escape Stasis . | . . . . Rewire . | . . . . Trap . | . . . . Miscellaneous . | . . . . Route ------- -11/Scrapyard -10/Materials -9/Materials (discovered 4 exits: [*Mat x2] / [*Min x2]) -9/Mines History --------- Turn | Location | Event 3 | -11/Scrapyard | Discovered new exit (range 15) 84 | -11/Scrapyard | Entered Materials 307 | -10/Materials | Build established: Mutant 389 | -10/Materials | Discovered new exit (range 16) 570 | -10/Materials | Entered another Materials area 570 | -9/Materials | Evolved 2 slots: Utility x2 877 | -9/Materials | Lost 4 parts (2n2w) 1010 | -9/Materials | Discovered new exit (range 15) 1068 | -9/Materials | Core integrity fell below 50% 1120 | -9/Materials | Destroyed 9 combat bots 1361 | -9/Materials | Discovered new exit (range 18) 1645 | -9/Materials | Discovered new exit (range 18) 1661 | -9/Materials | Core integrity fell below 20% 1697 | -9/Materials | Lost 3 parts (1p2n) 2241 | -9/Materials | Discovered new exit (range 13) 2390 | -9/Materials | Entered Mines 2443 | -9/Mines | Assembled infested the area 2460 | -9/Mines | Destroyed by as-14475 with Assembled Rifle Last Messages --------------- 02392_ System corrupted: Substantial component data lost. 02393_ S-10 Pest destroyed. 02416_ Acquired 17 matter. 02417_ Acquired 29 matter. 02439_ Searching scrap... 02439_ Found VTOL Module. 02439_ Found Lrg. Storage Unit. 02439_ Found Weapon Shielding. 02439_ Found Heat Sink. 02439_ Found 18 Matter. 02440_ Acquired 18 matter. 02443_ ALERT: Infestation in the mines, dispatching Demolisher response squad. 02452_ K-01 Serf collects debris. 02455_ HV Slug penetrates Wall. 02456_ K-01 Serf collects debris. 02457_ C-30 ARC bursts open, deploying its payload. 02457_ D-53 Grenadier unfolds itself. 02459_ K-01 Serf collects debris. 02460_ HV Slug penetrates Wall. Map ----- +----------------------------------------------------+ | ?????????????????????????????????????????????????? | | ?????????????????????????????????????????????????? | | ?????????????????????????????????????????????????? | | ?????????????????????????????????????????????????? | | ?????????????????????????????????????????????????? | | ?????????????????????????????????????????????????? | | ?????????????????????????????????????????????????? | | ?????????????????????????????????????????????????? | | ?????????????? ????????????????????????????????? | | ???????????? ????????????????????????????????? | | ?????????? ????????????????????????????????? | | ?????????? ????????????????????????????????? | | ??????????# ????????????????????????????????? | | ????####?## ????????????????????????????????? | | ???? ## ????????????????????????????????? | | ?????? #???????????????????????????????? | | ??????? ???????????????????????????????? | | ???????? ???????????????????????????????? | | ????????? ?#?????????????????????????????? | | ?????????? #?# ????????????????????????????? | | ??????????? #?# ??###??????????????????????? | | ???????????? #?? ### ####???????????????????? | | ?????????????# #???# ####### ###?????????? | | ??????????????# #???# $ #?????????? | | ??????????????# ##### k #?????????? | | ?????????????# a @d % #?????????????? | | #### ????# ##### d #??????????????? | | # ####!=#???# ###??????????????? | | ?# ! #???# # ##????????????????? | | ! #???## ##### #?????????????????? | | ?# ##### ##????###??????#?????????????????? | | ?## ??????# #?????????? ????????????????????? | | ??## ????????# #????????# ????????????????????? | | ????????????### #???????# ???????????????????? | | ????????????# #??????# ???????????????????? | | ????????????# ###?????# ?????????????????????? | | ????????????# #??????# #??????????????????????? | | ????????????# #?????? #???????????????????????? | | ????????????# #?##### #????????????????????????? | | ????????????# ### #???????????????????????????? | | ???????????## = [ #???????????????????????????? | | ???????????# *= #???????????????????????????? | | ???????????# [* ##???????????????????????????? | | ???????????# ##???????????????????????????? | | ???????????## ## ##??????????????????????????? | | ????????????###### ##?????????????????????????? | | ????????????????## ##????????????????????????? | | ??????????????### ##???????????????????????? | | ??????????????# ##??????????????????????? | | ?????????????# ## #??????????????????????? | +----------------------------------------------------+ Best States ------------- Heat Dissipation 28 Energy Generation 14 Energy Capacity 280 Matter Stores 397 Matter Capacity 450 Sight Range 18 Terrain Scan Density 10 Evasion (%) 40 Targeting Accuracy 15 Recoil Reduction 2 Item Schematics ----------------- Hvy. Ion Engine | -9/Materials | Scanalyzed Imp. Assault Rifle | -9/Materials | Scanalyzed Robot Schematics ------------------ None Fabricated ------------ Nothing Alien Tech Used ----------------- None Achievements -------------- Hey, That's Mine! Challenges ------------ None Game ------ Seed BladeThermalLink Manual? 0 Play Time 00:26:23 Cumulative 3.5 hours Start 2024.04.04 @ 12:21:42 End 2024.04.04 @ 18:34:17 Sessions 2 Manual Loads 0 Difficulty Rogue Special Mode None Game No. 7 Rogue 7 Adventurer 0 Explorer 0 Win Type - Total 0 Types 0/0/0/0/0/0/0/0/0 Lore% 2 Gallery% 7 Achievement% 8 Wizard Run 0 Options --------- Layout 0 ASCII 0 Keyboard 0 Movement Mouse Keybinds 0 Fullscreen 2 Font 24/X11 Map View 76x50 Zoom Use 0% Tactical HUD 1 Map Filters NONE Filters NONE Steam 1 RUN: 81fe2038-ac78-43d9-908e-016718e55972